Workbook

Sheet Instructions

Sheet Meta data_sheet
A1: Ambient Monitoring Station | B1: Details | D1: Ambient Monitoring Results | E1: Details
A2: Location | B2: Maules Creek | D2: PM2.5 monitoring start (dd/mm/yyyy hh:mm) | E2: 2020-01-01
A3: Easting | B3: =VLOOKUP($B$2,'Meta data_lookup'!$A$2:$D$5,2,FALSE) -> 225302 | D3: PM2.5 monitoring end | E3: 2020-02-01
A4: Northing | B4: =VLOOKUP($B$2,'Meta data_lookup'!$A$2:$D$5,3,FALSE) -> 6623037 | D4: PM2.5 monitoring period (h) | E4: =(E3-E2)*24 -> 744
A5: Site elevation (m) | B5: =VLOOKUP($B$2,'Meta data_lookup'!$A$2:$D$5,4,FALSE) -> ND | D5: Number of valid PM2.5 results | E5: =COUNTIF('Raw data_sheet'!G2:G745,"Valid") -> 709
A6: Description of surrounding land use | B6: Agriculture/Mining | D6: Proportion of valid PM2.5 results (%) | E6: =E5/E4 -> 0.9529569892
A7: Typical sources impacting on the site | B7: Agriculture/Mining/Unsealed Roads | D7: PM10 monitoring start (dd/mm/yyyy hh:mm) | E7: 2020-01-01
A8: Site compliance with AS/NZS 3580.1.1:2007 | B8: Yes | D8: PM10 monitoring end | E8: 2020-02-01
A9: PM2.5 method compliance with AS/NZS 3580.9.13:2013 | B9: Yes | D9: PM10 monitoring period (h) | E9: =(E8-E7)*24 -> 744
A10: PM2.5 instrument make | B10: Thermo Scientific | D10: Number of valid PM10 results | E10: =COUNTIF('Raw data_sheet'!J2:J745,"Valid") -> 709
A11: PM2.5 instrument model | B11: 1405DF | D11: Proportion of valid PM10 results (%) | E11: =E10/E9 -> 0.9529569892
A12: PM2.5 instrument intake height (m) | B12: 3.5
A13: PM10 method compliance with AS 3580.9.8-2008 | B13: No*
A14: PM10 instrument make | B14: Thermo Scientific
A15: PM10 instrument model | B15: 1405DF
A16: PM10 instrument intake height (m) | B16: 3.5
A17: *The 1405DF TEOM used at this site measures PM10 indirectly rather than directly. The unit does however meet the intent of AS 3580.9.8-2008, and this method has been accredited by the USEPA. It is considered scientifically robust and is used extensively throughout NSW with EPA's knowledge and informal acceptance.

Sheet Meta data_lookup
A1: Location | B1: Easting | C1: Northing | D1: Site elevation (m)
A2: Maules Creek | B2: 225302 | C2: 6623037 | D2: ND
A3: Breeza | B3: 237993 | C3: 6542606 | D3: ND
A4: Will-gai | B4: 231804 | C4: 6596392 | D4: ND
A5: Werris Creek | B5: 276783 | C5: 6528734 | D5: ND

Sheet Raw data_sheet
A1: Year | B1: Month | C1: Day | D1: Hour | E1: Date and time | F1: PM2.5_hourly | G1: PM2.5_Data_Status | H1: PM2.5_24hr_rolling_average | I1: PM10_hourly | J1: PM10_Data_Status | K1: PM10_24hr_rolling_average | L1: Cause of data invalidity, if applicable | M1: Detailed comments | N1: PM2.5_hourly_valid_plot | O1: PM2.5_24hr_rolling_ave_valid_plot | P1: PM10_hourly_valid_plot | Q1: PM10_24hr_rolling_ave_valid_plot | R1: PM10_hourly_valid_plot_series | S1: PM10_24hr_rolling_average_valid_plot_series | T1: PM2.5_hourly_valid_plot_series | U1: PM2.5_24hr_rolling_average_valid_plot_series
A2: 2020 | B2: 1 | C2: 1 | D2: 0 | E2: =DATE(A2,B2,C2)+TIME(D2,0,0) -> 43831 | F2: 13.39 | G2: Valid | H2: 9.79 | I2: 25.42 | J2: Valid | K2: 22.16 | N2: =IF(G2="Valid", F2, NA()) -> 13.39 | O2: =IF(G2="Valid", H2, NA()) -> 9.79 | P2: =IF(J2="Valid", I2, NA()) -> 25.42 | Q2: =IF(J2="Valid", K2, NA()) -> 22.16 | R2: 25.42 | S2: 22.16 | T2: 13.39 | U2: 9.79
A3: =A2 -> 2020 | B3: =B2 -> 1 | C3: =C2 -> 1 | D3: =IF(D2=23,0,D2+1) -> 1 | E3: =E2+0.0416666666666666 -> 43831.04167 | F3: 17.13 | G3: Valid | H3: 10.24 | I3: 26.41 | J3: Valid | K3: 22.33 | N3: 17.13 | O3: 10.24 | P3: 26.41 | Q3: 22.33 | R3: 26.41 | S3: 22.33 | T3: 17.13 | U3: 10.24
A4: =A3 -> 2020 | B4: =B3 -> 1 | C4: 1 | D4: =IF(D3=23,0,D3+1) -> 2 | E4: =E3+0.0416666666666666 -> 43831.08333 | F4: 14.22 | G4: Valid | H4: 10.52 | I4: 24.21 | J4: Valid | K4: 22.48 | N4: 14.22 | O4: 10.52 | P4: 24.21 | Q4: 22.48 | R4: 24.21 | S4: 22.48 | T4: 14.22 | U4: 10.52
A5: 2020 | B5: 1 | C5: 1 | D5: 3 | E5: 43831.125 | F5: 11.36 | G5: Valid | H5: 10.66 | I5: 20.22 | J5: Valid | K5: 22.63 | N5: 11.36 | O5: 10.66 | P5: 20.22 | Q5: 22.63 | R5: 20.22 | S5: 22.63 | T5: 11.36 | U5: 10.66
A6: 2020 | B6: 1 | C6: 1 | D6: 4 | E6: 43831.16667 | F6: 5.82 | G6: Valid | H6: 10.68 | I6: 14.58 | J6: Valid | K6: 22.59 | N6: 5.82 | O6: 10.68 | P6: 14.58 | Q6: 22.59 | R6: 14.58 | S6: 22.59 | T6: 5.82 | U6: 10.68
A7: 2020 | B7: 1 | C7: 1 | D7: 5 | E7: 43831.20833 | F7: 4.62 | G7: Valid | H7: 10.66 | I7: 11.78 | J7: Valid | K7: 22.53 | N7: 4.62 | O7: 10.66 | P7: 11.78 | Q7: 22.53 | R7: 11.78 | S7: 22.53 | T7: 4.62 | U7: 10.66
A8: 2020 | B8: 1 | C8: 1 | D8: 6 | E8: 43831.25 | F8: 8.74 | G8: Valid | H8: 10.88 | I8: 14.64 | J8: Valid | K8: 22.67 | N8: 8.74 | O8: 10.88 | P8: 14.64 | Q8: 22.67 | R8: 14.64 | S8: 22.67 | T8: 8.74 | U8: 10.88
A9: 2020 | B9: 1 | C9: 1 | D9: 7 | E9: 43831.29167 | F9: 6.41 | G9: Valid | H9: 10.92 | I9: 19.22 | J9: Valid | K9: 22.83 | N9: 6.41 | O9: 10.92 | P9: 19.22 | Q9: 22.83 | R9: 19.22 | S9: 22.83 | T9: 6.41 | U9: 10.92
A10: 2020 | B10: 1 | C10: 1 | D10: 8 | E10: 43831.33333 | F10: 6.13 | G10: Valid | H10: 11.04 | I10: 17.86 | J10: Valid | K10: 22.91 | N10: 6.13 | O10: 11.04 | P10: 17.86 | Q10: 22.91 | R10: 17.86 | S10: 22.91 | T10: 6.13 | U10: 11.04
A11: 2020 | B11: 1 | C11: 1 | D11: 9 | E11: 43831.375 | F11: 7.9 | G11: Valid | H11: 11.01 | I11: 18.71 | J11: Valid | K11: 22.96 | N11: 7.9 | O11: 11.01 | P11: 18.71 | Q11: 22.96 | R11: 18.71 | S11: 22.96 | T11: 7.9 | U11: 11.01
A12: 2020 | B12: 1 | C12: 1 | D12: 10 | E12: 43831.41667 | F12: 9.49 | G12: Valid | H12: 11.15 | I12: 30.7 | J12: Valid | K12: 23.58 | N12: 9.49 | O12: 11.15 | P12: 30.7 | Q12: 23.58 | R12: 30.7 | S12: 23.58 | T12: 9.49 | U12: 11.15
A13: 2020 | B13: 1 | C13: 1 | D13: 11 | E13: 43831.45833 | F13: 10.89 | G13: Valid | H13: 11.12 | I13: 19.63 | J13: Valid | K13: 22.99 | N13: 10.89 | O13: 11.12 | P13: 19.63 | Q13: 22.99 | R13: 19.63 | S13: 22.99 | T13: 10.89 | U13: 11.12
A14: 2020 | B14: 1 | C14: 1 | D14: 12 | E14: 43831.5 | F14: 11.97 | G14: Valid | H14: 11.24 | I14: 29.1 | J14: Valid | K14: 23.31 | N14: 11.97 | O14: 11.24 | P14: 29.1 | Q14: 23.31 | R14: 29.1 | S14: 23.31 | T14: 11.97 | U14: 11.24
A15: 2020 | B15: 1 | C15: 1 | D15: 13 | E15: 43831.54167 | F15: 10.57 | G15: Valid | H15: 11.3 | I15: 26.05 | J15: Valid | K15: 23.14 | N15: 10.57 | O15: 11.3 | P15: 26.05 | Q15: 23.14 | R15: 26.05 | S15: 23.14 | T15: 10.57 | U15: 11.3
A16: 2020 | B16: 1 | C16: 1 | D16: 14 | E16: 43831.58333 | F16: 10.74 | G16: Valid | H16: 11.23 | I16: 20.85 | J16: Valid | K16: 22.67 | N16: 10.74 | O16: 11.23 | P16: 20.85 | Q16: 22.67 | R16: 20.85 | S16: 22.67 | T16: 10.74 | U16: 11.23
A17: 2020 | B17: 1 | C17: 1 | D17: 15 | E17: 43831.625 | F17: 12.88 | G17: Valid | H17: 11.44 | I17: 22.04 | J17: Valid | K17: 22.32 | N17: 12.88 | O17: 11.44 | P17: 22.04 | Q17: 22.32 | R17: 22.04 | S17: 22.32 | T17: 12.88 | U17: 11.44
A18: 2020 | B18: 1 | C18: 1 | D18: 16 | E18: 43831.66667 | F18: 21.25 | G18: Valid | H18: 11.81 | I18: 29.96 | J18: Valid | K18: 22.15 | N18: 21.25 | O18: 11.81 | P18: 29.96 | Q18: 22.15 | R18: 29.96 | S18: 22.15 | T18: 21.25 | U18: 11.81
A19: 2020 | B19: 1 | C19: 1 | D19: 17 | E19: 43831.70833 | F19: 13.09 | G19: Valid | H19: 11.92 | I19: 23.06 | J19: Valid | K19: 22.23 | N19: 13.09 | O19: 11.92 | P19: 23.06 | Q19: 22.23 | R19: 23.06 | S19: 22.23 | T19: 13.09 | U19: 11.92
A20: 2020 | B20: 1 | C20: 1 | D20: 18 | E20: 43831.75 | F20: 22.63 | G20: Valid | H20: 12.37 | I20: 31.27 | J20: Valid | K20: 22.7 | N20: 22.63 | O20: 12.37 | P20: 31.27 | Q20: 22.7 | R20: 31.27 | S20: 22.7 | T20: 22.63 | U20: 12.37
A21: 2020 | B21: 1 | C21: 1 | D21: 19 | E21: 43831.79167 | F21: 20.65 | G21: Valid | H21: 12.35 | I21: 29.16 | J21: Valid | K21: 22.74 | N21: 20.65 | O21: 12.35 | P21: 29.16 | Q21: 22.74 | R21: 29.16 | S21: 22.74 | T21: 20.65 | U21: 12.35
A22: 2020 | B22: 1 | C22: 1 | D22: 20 | E22: 43831.83333 | F22: 15.59 | G22: Valid | H22: 12.36 | I22: 24.51 | J22: Valid | K22: 22.79 | N22: 15.59 | O22: 12.36 | P22: 24.51 | Q22: 22.79 | R22: 24.51 | S22: 22.79 | T22: 15.59 | U22: 12.36
A23: 2020 | B23: 1 | C23: 1 | D23: 21 | E23: 43831.875 | F23: 16.38 | G23: Valid | H23: 12.52 | I23: 24.41 | J23: Valid | K23: 22.98 | N23: 16.38 | O23: 12.52 | P23: 24.41 | Q23: 22.98 | R23: 24.41 | S23: 22.98 | T23: 16.38 | U23: 12.52
A24: 2020 | B24: 1 | C24: 1 | D24: 22 | E24: 43831.91667 | F24: 16.51 | G24: Valid | H24: 12.61 | I24: 25.16 | J24: Valid | K24: 23.07 | N24: 16.51 | O24: 12.61 | P24: 25.16 | Q24: 23.07 | R24: 25.16 | S24: 23.07 | T24: 16.51 | U24: 12.61
A25: 2020 | B25: =B24 -> 1 | C25: =C24 -> 1 | D25: 23 | E25: 43831.95833 | F25: 15.06 | G25: Valid | H25: 12.64 | I25: 23.61 | J25: Valid | K25: 23.02 | N25: 15.06 | O25: 12.64 | P25: 23.61 | Q25: 23.02 | R25: 23.61 | S25: 23.02 | T25: 15.06 | U25: 12.64
A26: 2020 | B26: =B25 -> 1 | C26: =C2+1 -> 2 | D26: 0 | E26: 43832 | F26: 15.94 | G26: Valid | H26: 12.75 | I26: 28.39 | J26: Valid | K26: 23.15 | N26: 15.94 | O26: 12.75 | P26: 28.39 | Q26: 23.15 | R26: 28.39 | S26: 23.15 | T26: 15.94 | U26: 12.75
A27: 2020 | B27: =B26 -> 1 | C27: =C3+1 -> 2 | D27: 1 | E27: 43832.04167 | F27: 19.12 | G27: Valid | H27: 12.83 | I27: 39.04 | J27: Valid | K27: 23.67 | N27: 19.12 | O27: 12.83 | P27: 39.04 | Q27: 23.67 | R27: 39.04 | S27: 23.67 | T27: 19.12 | U27: 12.83
A28: 2020 | B28: 1 | C28: 2 | D28: 2 | E28: 43832.08333 | F28: 18.19 | G28: Valid | H28: 13 | I28: 35.79 | J28: Valid | K28: 24.16 | N28: 18.19 | O28: 13 | P28: 35.79 | Q28: 24.16 | R28: 35.79 | S28: 24.16 | T28: 18.19 | U28: 13
A29: 2020 | B29: 1 | C29: 2 | D29: 3 | E29: 43832.125 | F29: 21.39 | G29: Valid | H29: 13.42 | I29: 30 | J29: Valid | K29: 24.56 | N29: 21.39 | O29: 13.42 | P29: 30 | Q29: 24.56 | R29: 30 | S29: 24.56 | T29: 21.39 | U29: 13.42
A30: 2020 | B30: 1 | C30: 2 | D30: 4 | E30: 43832.16667 | F30: 18.43 | G30: Valid | H30: 13.94 | I30: 27.67 | J30: Valid | K30: 25.11 | N30: 18.43 | O30: 13.94 | P30: 27.67 | Q30: 25.11 | R30: 27.67 | S30: 25.11 | T30: 18.43 | U30: 13.94
A31: 2020 | B31: 1 | C31: 2 | D31: 5 | E31: 43832.20833 | F31: 18.17 | G31: Valid | H31: 14.51 | I31: 28.35 | J31: Valid | K31: 25.8 | N31: 18.17 | O31: 14.51 | P31: 28.35 | Q31: 25.8 | R31: 28.35 | S31: 25.8 | T31: 18.17 | U31: 14.51
A32: 2020 | B32: 1 | C32: 2 | D32: 6 | E32: 43832.25 | F32: 16.54 | G32: Valid | H32: 14.83 | I32: 26.13 | J32: Valid | K32: 26.28 | N32: 16.54 | O32: 14.83 | P32: 26.13 | Q32: 26.28 | R32: 26.13 | S32: 26.28 | T32: 16.54 | U32: 14.83
A33: 2020 | B33: 1 | C33: 2 | D33: 7 | E33: 43832.29167 | F33: 16.52 | G33: Valid | H33: 15.25 | I33: 36.55 | J33: Valid | K33: 27 | N33: 16.52 | O33: 15.25 | P33: 36.55 | Q33: 27 | R33: 36.55 | S33: 27 | T33: 16.52 | U33: 15.25
A34: 2020 | B34: 1 | C34: 2 | D34: 8 | E34: 43832.33333 | F34: 22.81 | G34: Valid | H34: 15.95 | I34: 44.78 | J34: Valid | K34: 28.12 | N34: 22.81 | O34: 15.95 | P34: 44.78 | Q34: 28.12 | R34: 44.78 | S34: 28.12 | T34: 22.81 | U34: 15.95
A35: 2020 | B35: 1 | C35: 2 | D35: 9 | E35: 43832.375 | F35: 26.83 | G35: Valid | H35: 16.74 | I35: 47.53 | J35: Valid | K35: 29.32 | N35: 26.83 | O35: 16.74 | P35: 47.53 | Q35: 29.32 | R35: 47.53 | S35: 29.32 | T35: 26.83 | U35: 16.74
A36: 2020 | B36: 1 | C36: 2 | D36: 10 | E36: 43832.41667 | F36: 20.8 | G36: Valid | H36: 17.21 | I36: 39.56 | J36: Valid | K36: 29.69 | N36: 20.8 | O36: 17.21 | P36: 39.56 | Q36: 29.69 | R36: 39.56 | S36: 29.69 | T36: 20.8 | U36: 17.21
A37: 2020 | B37: 1 | C37: 2 | D37: 11 | E37: 43832.45833 | F37: 23.91 | G37: Valid | H37: 17.75 | I37: 36.36 | J37: Valid | K37: 30.39 | N37: 23.91 | O37: 17.75 | P37: 36.36 | Q37: 30.39 | R37: 36.36 | S37: 30.39 | T37: 23.91 | U37: 17.75
A38: 2020 | B38: 1 | C38: 2 | D38: 12 | E38: 43832.5 | F38: 18.25 | G38: Valid | H38: 18.01 | I38: 29.49 | J38: Valid | K38: 30.41 | N38: 18.25 | O38: 18.01 | P38: 29.49 | Q38: 30.41 | R38: 29.49 | S38: 30.41 | T38: 18.25 | U38: 18.01
A39: 2020 | B39: 1 | C39: 2 | D39: 13 | E39: 43832.54167 | F39: 15.84 | G39: Valid | H39: 18.23 | I39: 25.31 | J39: Valid | K39: 30.37 | N39: 15.84 | O39: 18.23 | P39: 25.31 | Q39: 30.37 | R39: 25.31 | S39: 30.37 | T39: 15.84 | U39: 18.23
A40: 2020 | B40: 1 | C40: 2 | D40: 14 | E40: 43832.58333 | F40: 15.91 | G40: Valid | H40: 18.45 | I40: 25.39 | J40: Valid | K40: 30.56 | N40: 15.91 | O40: 18.45 | P40: 25.39 | Q40: 30.56 | R40: 25.39 | S40: 30.56 | T40: 15.91 | U40: 18.45
A41: 2020 | B41: 1 | C41: 2 | D41: 15 | E41: 43832.625 | F41: 20.17 | G41: Valid | H41: 18.75 | I41: 31.86 | J41: Valid | K41: 30.97 | N41: 20.17 | O41: 18.75 | P41: 31.86 | Q41: 30.97 | R41: 31.86 | S41: 30.97 | T41: 20.17 | U41: 18.75
A42: 2020 | B42: 1 | C42: 2 | D42: 16 | E42: 43832.66667 | F42: 12.56 | G42: Valid | H42: 18.39 | I42: 30.53 | J42: Valid | K42: 31 | N42: 12.56 | O42: 18.39 | P42: 30.53 | Q42: 31 | R42: 30.53 | S42: 31 | T42: 12.56 | U42: 18.39
A43: 2020 | B43: 1 | C43: 2 | D43: 17 | E43: 43832.70833 | F43: 17.75 | G43: Valid | H43: 18.58 | I43: 35.23 | J43: Valid | K43: 31.5 | N43: 17.75 | O43: 18.58 | P43: 35.23 | Q43: 31.5 | R43: 35.23 | S43: 31.5 | T43: 17.75 | U43: 18.58
A44: 2020 | B44: 1 | C44: 2 | D44: 18 | E44: 43832.75 | F44: 17.79 | G44: Valid | H44: 18.38 | I44: 34.31 | J44: Valid | K44: 31.63 | N44: 17.79 | O44: 18.38 | P44: 34.31 | Q44: 31.63 | R44: 34.31 | S44: 31.63 | T44: 17.79 | U44: 18.38
A45: 2020 | B45: 1 | C45: 2 | D45: 19 | E45: 43832.79167 | F45: 23.85 | G45: Valid | H45: 18.51 | I45: 103.87 | J45: Valid | K45: 34.74 | N45: 23.85 | O45: 18.51 | P45: 103.87 | Q45: 34.74 | R45: 103.87 | S45: 34.74 | T45: 23.85 | U45: 18.51
A46: 2020 | B46: 1 | C46: 2 | D46: 20 | E46: 43832.83333 | F46: =NA() ->  | G46: Invalid | H46: =NA() ->  | I46: =NA() ->  | J46: Invalid | K46: =NA() ->  | L46: Power Failure | M46: Power outage | O46: =IF(G46="Valid", H46, NA()) ->  | P46: =IF(J46="Valid", I46, NA()) -> 
A47: 2020 | B47: 1 | C47: 2 | D47: 21 | E47: 43832.875 | F47: =NA() ->  | G47: Invalid | H47: =NA() ->  | I47: =NA() ->  | J47: Invalid | K47: =NA() ->  | L47: Power Failure | M47: Power outage/system reset
A48: 2020 | B48: 1 | C48: 2 | D48: 22 | E48: 43832.91667 | F48: =NA() ->  | G48: Invalid | H48: =NA() ->  | I48: =NA() ->  | J48: Invalid | K48: =NA() ->  | L48: Power Failure | M48: Power outage/system reset
A49: 2020 | B49: 1 | C49: 2 | D49: 23 | E49: 43832.95833 | F49: =NA() ->  | G49: Invalid | H49: =NA() ->  | I49: =NA() ->  | J49: Invalid | K49: =NA() ->  | L49: Power Failure | M49: Power outage/system reset
A50: 2020 | B50: 1 | C50: 3 | D50: 0 | E50: 43833 | F50: =NA() ->  | G50: Invalid | H50: =NA() ->  | I50: =NA() ->  | J50: Invalid | K50: =NA() ->  | L50: Power Failure | M50: Power outage/system reset
A51: 2020 | B51: 1 | C51: 3 | D51: 1 | E51: 43833.04167 | F51: 4.49 | G51: Valid | H51: 18.43 | I51: 9.64 | J51: Valid | K51: 35.7 | N51: 4.49 | O51: 18.43 | P51: 9.64 | Q51: 35.7 | R51: 9.64 | S51: 35.7 | T51: 4.49 | U51: 18.43
A52: 2020 | B52: 1 | C52: 3 | D52: 2 | E52: 43833.08333 | F52: 9.59 | G52: Valid | H52: 17.98 | I52: 29.14 | J52: Valid | K52: 35.35 | N52: 9.59 | O52: 17.98 | P52: 29.14 | Q52: 35.35 | R52: 29.14 | S52: 35.35 | T52: 9.59 | U52: 17.98
A53: 2020 | B53: 1 | C53: 3 | D53: 3 | E53: 43833.125 | F53: 12.32 | G53: Valid | H53: 17.5 | I53: 40.17 | J53: Valid | K53: 35.89 | N53: 12.32 | O53: 17.5 | P53: 40.17 | Q53: 35.89 | R53: 40.17 | S53: 35.89 | T53: 12.32 | U53: 17.5
A54: 2020 | B54: 1 | C54: 3 | D54: 4 | E54: 43833.16667 | F54: 8.93 | G54: Valid | H54: 17 | I54: 38.19 | J54: Valid | K54: 36.44 | N54: 8.93 | O54: 17 | P54: 38.19 | Q54: 36.44 | R54: 38.19 | S54: 36.44 | T54: 8.93 | U54: 17
A55: 2020 | B55: 1 | C55: 3 | D55: 5 | E55: 43833.20833 | F55: 9.18 | G55: Valid | H55: 16.53 | I55: 41.67 | J55: Valid | K55: 37.14 | N55: 9.18 | O55: 16.53 | P55: 41.67 | Q55: 37.14 | R55: 41.67 | S55: 37.14 | T55: 9.18 | U55: 16.53
A56: 2020 | B56: 1 | C56: 3 | D56: 6 | E56: 43833.25 | F56: 9.09 | G56: Valid | H56: 16.14 | I56: 33.6 | J56: Valid | K56: 37.54 | N56: 9.09 | O56: 16.14 | P56: 33.6 | Q56: 37.54 | R56: 33.6 | S56: 37.54 | T56: 9.09 | U56: 16.14
A57: 2020 | B57: 1 | C57: 3 | D57: 7 | E57: 43833.29167 | F57: 8.16 | G57: Valid | H57: 15.7 | I57: 38.13 | J57: Valid | K57: 37.62 | N57: 8.16 | O57: 15.7 | P57: 38.13 | Q57: 37.62 | R57: 38.13 | S57: 37.62 | T57: 8.16 | U57: 15.7
A58: 2020 | B58: 1 | C58: 3 | D58: 8 | E58: 43833.33333 | F58: 10.14 | G58: Valid | H58: 15.03 | I58: 36.07 | J58: Valid | K58: 37.16 | N58: 10.14 | O58: 15.03 | P58: 36.07 | Q58: 37.16 | R58: 36.07 | S58: 37.16 | T58: 10.14 | U58: 15.03
A59: 2020 | B59: 1 | C59: 3 | D59: 9 | E59: 43833.375 | F59: 9.61 | G59: Valid | H59: 14.12 | I59: 36.59 | J59: Valid | K59: 36.58 | N59: 9.61 | O59: 14.12 | P59: 36.59 | Q59: 36.58 | R59: 36.59 | S59: 36.58 | T59: 9.61 | U59: 14.12
A60: 2020 | B60: 1 | C60: 3 | D60: 10 | E60: 43833.41667 | F60: 11.28 | G60: Valid | H60: 13.62 | I60: 27.89 | J60: Valid | K60: 35.97 | N60: 11.28 | O60: 13.62 | P60: 27.89 | Q60: 35.97 | R60: 27.89 | S60: 35.97 | T60: 11.28 | U60: 13.62
A61: 2020 | B61: 1 | C61: 3 | D61: 11 | E61: 43833.45833 | F61: 12.92 | G61: Valid | H61: 13.04 | I61: 33.97 | J61: Valid | K61: 35.84 | N61: 12.92 | O61: 13.04 | P61: 33.97 | Q61: 35.84 | R61: 33.97 | S61: 35.84 | T61: 12.92 | U61: 13.04
A62: 2020 | B62: 1 | C62: 3 | D62: 12 | E62: 43833.5 | F62: 15.1 | G62: Valid | H62: 12.88 | I62: 34.03 | J62: Valid | K62: 36.08 | N62: 15.1 | O62: 12.88 | P62: 34.03 | Q62: 36.08 | R62: 34.03 | S62: 36.08 | T62: 15.1 | U62: 12.88
A63: 2020 | B63: 1 | C63: 3 | D63: 13 | E63: 43833.54167 | F63: 10.29 | G63: Valid | H63: 12.59 | I63: 21.86 | J63: Valid | K63: 35.9 | N63: 10.29 | O63: 12.59 | P63: 21.86 | Q63: 35.9 | R63: 21.86 | S63: 35.9 | T63: 10.29 | U63: 12.59
A64: 2020 | B64: 1 | C64: 3 | D64: 14 | E64: 43833.58333 | F64: 13.06 | G64: Valid | H64: 12.44 | I64: 20.84 | J64: Valid | K64: 35.66 | N64: 13.06 | O64: 12.44 | P64: 20.84 | Q64: 35.66 | R64: 20.84 | S64: 35.66 | T64: 13.06 | U64: 12.44
A65: 2020 | B65: 1 | C65: 3 | D65: 15 | E65: 43833.625 | F65: 10.59 | G65: Valid | H65: 11.93 | I65: 17.72 | J65: Valid | K65: 34.92 | N65: 10.59 | O65: 11.93 | P65: 17.72 | Q65: 34.92 | R65: 17.72 | S65: 34.92 | T65: 10.59 | U65: 11.93
A66: 2020 | B66: 1 | C66: 3 | D66: 16 | E66: 43833.66667 | F66: 17.32 | G66: Valid | H66: 12.18 | I66: 23.52 | J66: Valid | K66: 34.55 | N66: =IF(G66="Valid", F66, NA()) -> 17.32 | O66: =IF(G66="Valid", H66, NA()) -> 12.18 | P66: =IF(J66="Valid", I66, NA()) -> 23.52 | Q66: =IF(J66="Valid", K66, NA()) -> 34.55 | R66: 23.52 | S66: 34.55 | T66: 17.32 | U66: 12.18
A67: 2020 | B67: 1 | C67: 3 | D67: 17 | E67: 43833.70833 | F67: 13.41 | G67: Valid | H67: 11.95 | I67: 20.06 | J67: Valid | K67: 33.75 | N67: 13.41 | O67: 11.95 | P67: 20.06 | Q67: 33.75 | R67: 20.06 | S67: 33.75 | T67: 13.41 | U67: 11.95
A68: =A67 -> 2020 | B68: 1 | C68: 3 | D68: =IF(D67=23,0,D67+1) -> 18 | E68: =E67+0.0416666666666666 -> 43833.75 | F68: 10.17 | G68: Valid | H68: 11.55 | I68: 17.49 | J68: Valid | K68: 32.87 | N68: 10.17 | O68: 11.55 | P68: 17.49 | Q68: 32.87 | R68: 17.49 | S68: 32.87 | T68: 10.17 | U68: 11.55
A69: 2020 | B69: 1 | C69: 3 | D69: 19 | E69: 43833.79167 | F69: 14.14 | G69: Valid | H69: 11.04 | I69: 21.75 | J69: Valid | K69: 28.54 | N69: 14.14 | O69: 11.04 | P69: 21.75 | Q69: 28.54 | R69: 21.75 | S69: 28.54 | T69: 14.14 | U69: 11.04
A70: 2020 | B70: 1 | C70: 3 | D70: 20 | E70: 43833.83333 | F70: 11.56 | G70: Valid | H70: 11.07 | I70: 19.35 | J70: Valid | K70: 28.08 | N70: 11.56 | O70: 11.07 | P70: 19.35 | Q70: 28.08 | R70: 19.35 | S70: 28.08 | T70: 11.56 | U70: 11.07
A71: 2020 | B71: 1 | C71: 3 | D71: 21 | E71: 43833.875 | F71: 9.85 | G71: Valid | H71: 11.01 | I71: 18 | J71: Valid | K71: 27.6 | N71: 9.85 | O71: 11.01 | P71: 18 | Q71: 27.6 | R71: 18 | S71: 27.6 | T71: 9.85 | U71: 11.01
A72: 2020 | B72: 1 | C72: 3 | D72: 22 | E72: 43833.91667 | F72: 8.2 | G72: Valid | H72: 10.88 | I72: 14.03 | J72: Valid | K72: 26.99 | N72: 8.2 | O72: 10.88 | P72: 14.03 | Q72: 26.99 | R72: 14.03 | S72: 26.99 | T72: 8.2 | U72: 10.88
A73: 2020 | B73: 1 | C73: 3 | D73: 23 | E73: 43833.95833 | F73: 12.3 | G73: Valid | H73: 10.94 | I73: 16.84 | J73: Valid | K73: 26.55 | N73: 12.3 | O73: 10.94 | P73: 16.84 | Q73: 26.55 | R73: 16.84 | S73: 26.55 | T73: 12.3 | U73: 10.94
A74: 2020 | B74: 1 | C74: 4 | D74: 0 | E74: 43834 | F74: 11.13 | G74: Valid | H74: 10.95 | I74: 17.41 | J74: Valid | K74: 26.17 | N74: 11.13 | O74: 10.95 | P74: 17.41 | Q74: 26.17 | R74: 17.41 | S74: 26.17 | T74: 11.13 | U74: 10.95
A75: 2020 | B75: 1 | C75: 4 | D75: 1 | E75: 43834.04167 | F75: 9.52 | G75: Valid | H75: 11.16 | I75: 17.24 | J75: Valid | K75: 26.48 | N75: 9.52 | O75: 11.16 | P75: 17.24 | Q75: 26.48 | R75: 17.24 | S75: 26.48 | T75: 9.52 | U75: 11.16
A76: 2020 | B76: 1 | C76: 4 | D76: 2 | E76: 43834.08333 | F76: 9.86 | G76: Valid | H76: 11.17 | I76: 18.25 | J76: Valid | K76: 26.03 | N76: 9.86 | O76: 11.17 | P76: 18.25 | Q76: 26.03 | R76: 18.25 | S76: 26.03 | T76: 9.86 | U76: 11.17
A77: 2020 | B77: 1 | C77: 4 | D77: 3 | E77: 43834.125 | F77: 18.72 | G77: Valid | H77: 11.44 | I77: 25.49 | J77: Valid | K77: 25.42 | N77: 18.72 | O77: 11.44 | P77: 25.49 | Q77: 25.42 | R77: 25.49 | S77: 25.42 | T77: 18.72 | U77: 11.44
A78: 2020 | B78: 1 | C78: 4 | D78: 4 | E78: 43834.16667 | F78: 16.08 | G78: Valid | H78: 11.74 | I78: 24.42 | J78: Valid | K78: 24.84 | N78: 16.08 | O78: 11.74 | P78: 24.42 | Q78: 24.84 | R78: 24.42 | S78: 24.84 | T78: 16.08 | U78: 11.74
A79: 2020 | B79: 1 | C79: 4 | D79: 5 | E79: 43834.20833 | F79: 17.55 | G79: Valid | H79: 12.09 | I79: 26.12 | J79: Valid | K79: 24.19 | N79: 17.55 | O79: 12.09 | P79: 26.12 | Q79: 24.19 | R79: 26.12 | S79: 24.19 | T79: 17.55 | U79: 12.09
A80: 2020 | B80: 1 | C80: 4 | D80: 6 | E80: 43834.25 | F80: 12.15 | G80: Valid | H80: 12.21 | I80: 19.75 | J80: Valid | K80: 23.62 | N80: 12.15 | O80: 12.21 | P80: 19.75 | Q80: 23.62 | R80: 19.75 | S80: 23.62 | T80: 12.15 | U80: 12.21
A81: 2020 | B81: 1 | C81: 4 | D81: 7 | E81: 43834.29167 | F81: 10.32 | G81: Valid | H81: 12.3 | I81: 19.98 | J81: Valid | K81: 22.86 | N81: 10.32 | O81: 12.3 | P81: 19.98 | Q81: 22.86 | R81: 19.98 | S81: 22.86 | T81: 10.32 | U81: 12.3
A82: 2020 | B82: 1 | C82: 4 | D82: 8 | E82: 43834.33333 | F82: 10.3 | G82: Valid | H82: 12.31 | I82: 21.81 | J82: Valid | K82: 22.27 | N82: 10.3 | O82: 12.31 | P82: 21.81 | Q82: 22.27 | R82: 21.81 | S82: 22.27 | T82: 10.3 | U82: 12.31
A83: 2020 | B83: 1 | C83: 4 | D83: 9 | E83: 43834.375 | F83: 11.55 | G83: Valid | H83: 12.39 | I83: 19.03 | J83: Valid | K83: 21.54 | N83: 11.55 | O83: 12.39 | P83: 19.03 | Q83: 21.54 | R83: 19.03 | S83: 21.54 | T83: 11.55 | U83: 12.39
A84: 2020 | B84: 1 | C84: 4 | D84: 10 | E84: 43834.41667 | F84: 11.54 | G84: Valid | H84: 12.4 | I84: 26.09 | J84: Valid | K84: 21.46 | N84: 11.54 | O84: 12.4 | P84: 26.09 | Q84: 21.46 | R84: 26.09 | S84: 21.46 | T84: 11.54 | U84: 12.4
A85: 2020 | B85: 1 | C85: 4 | D85: 11 | E85: 43834.45833 | F85: 11.58 | G85: Valid | H85: 12.35 | I85: 23.59 | J85: Valid | K85: 21.03 | N85: 11.58 | O85: 12.35 | P85: 23.59 | Q85: 21.03 | R85: 23.59 | S85: 21.03 | T85: 11.58 | U85: 12.35
A86: 2020 | B86: 1 | C86: 4 | D86: 12 | E86: 43834.5 | F86: 10.69 | G86: Valid | H86: 12.16 | I86: 19.46 | J86: Valid | K86: 20.42 | N86: 10.69 | O86: 12.16 | P86: 19.46 | Q86: 20.42 | R86: 19.46 | S86: 20.42 | T86: 10.69 | U86: 12.16
A87: 2020 | B87: 1 | C87: 4 | D87: 13 | E87: 43834.54167 | F87: 15.36 | G87: Valid | H87: 12.37 | I87: 27.64 | J87: Valid | K87: 20.66 | N87: 15.36 | O87: 12.37 | P87: 27.64 | Q87: 20.66 | R87: 27.64 | S87: 20.66 | T87: 15.36 | U87: 12.37
A88: 2020 | B88: 1 | C88: 4 | D88: 14 | E88: 43834.58333 | F88: 27 | G88: Valid | H88: 12.95 | I88: 38.53 | J88: Valid | K88: 21.4 | N88: 27 | O88: 12.95 | P88: 38.53 | Q88: 21.4 | R88: 38.53 | S88: 21.4 | T88: 27 | U88: 12.95
A89: 2020 | B89: 1 | C89: 4 | D89: 15 | E89: 43834.625 | F89: 14.25 | G89: Valid | H89: 13.11 | I89: 24.62 | J89: Valid | K89: 21.69 | N89: 14.25 | O89: 13.11 | P89: 24.62 | Q89: 21.69 | R89: 24.62 | S89: 21.69 | T89: 14.25 | U89: 13.11
A90: 2020 | B90: 1 | C90: 4 | D90: 16 | E90: 43834.66667 | F90: 11.6 | G90: Valid | H90: 12.87 | I90: 21.44 | J90: Valid | K90: 21.6 | N90: 11.6 | O90: 12.87 | P90: 21.44 | Q90: 21.6 | R90: 21.44 | S90: 21.6 | T90: 11.6 | U90: 12.87
A91: 2020 | B91: =B90 -> 1 | C91: =C67+1 -> 4 | D91: 17 | E91: 43834.70833 | F91: 15.44 | G91: Valid | H91: 12.95 | I91: 24.78 | J91: Valid | K91: 21.8 | N91: 15.44 | O91: 12.95 | P91: 24.78 | Q91: 21.8 | R91: 24.78 | S91: 21.8 | T91: 15.44 | U91: 12.95
A92: 2020 | B92: 1 | C92: 4 | D92: 18 | E92: 43834.75 | F92: 16.93 | G92: Valid | H92: 13.23 | I92: 25.23 | J92: Valid | K92: 22.12 | N92: 16.93 | O92: 13.23 | P92: 25.23 | Q92: 22.12 | R92: 25.23 | S92: 22.12 | T92: 16.93 | U92: 13.23
A93: 2020 | B93: 1 | C93: 4 | D93: 19 | E93: 43834.79167 | F93: 10.34 | G93: Valid | H93: 13.08 | I93: 18.43 | J93: Valid | K93: 21.98 | N93: 10.34 | O93: 13.08 | P93: 18.43 | Q93: 21.98 | R93: 18.43 | S93: 21.98 | T93: 10.34 | U93: 13.08
A94: 2020 | B94: 1 | C94: 4 | D94: 20 | E94: 43834.83333 | F94: 17.26 | G94: Valid | H94: 13.31 | I94: 26.21 | J94: Valid | K94: 22.27 | N94: 17.26 | O94: 13.31 | P94: 26.21 | Q94: 22.27 | R94: 26.21 | S94: 22.27 | T94: 17.26 | U94: 13.31
A95: 2020 | B95: 1 | C95: 4 | D95: 21 | E95: 43834.875 | F95: 16.02 | G95: Valid | H95: 13.57 | I95: 28.55 | J95: Valid | K95: 22.71 | N95: 16.02 | O95: 13.57 | P95: 28.55 | Q95: 22.71 | R95: 28.55 | S95: 22.71 | T95: 16.02 | U95: 13.57
A96: 2020 | B96: 1 | C96: 4 | D96: 22 | E96: 43834.91667 | F96: 13.35 | G96: Valid | H96: 13.79 | I96: 28.85 | J96: Valid | K96: 23.32 | N96: 13.35 | O96: 13.79 | P96: 28.85 | Q96: 23.32 | R96: 28.85 | S96: 23.32 | T96: 13.35 | U96: 13.79
A97: 2020 | B97: 1 | C97: 4 | D97: 23 | E97: 43834.95833 | F97: 11.62 | G97: Valid | H97: 13.76 | I97: 21.24 | J97: Valid | K97: 23.51 | N97: 11.62 | O97: 13.76 | P97: 21.24 | Q97: 23.51 | R97: 21.24 | S97: 23.51 | T97: 11.62 | U97: 13.76
A98: 2020 | B98: 1 | C98: 5 | D98: 0 | E98: 43835 | F98: 12.59 | G98: Valid | H98: 13.82 | I98: 21.1 | J98: Valid | K98: 23.66 | N98: 12.59 | O98: 13.82 | P98: 21.1 | Q98: 23.66 | R98: 21.1 | S98: 23.66 | T98: 12.59 | U98: 13.82
A99: 2020 | B99: 1 | C99: 5 | D99: 1 | E99: 43835.04167 | F99: 11.76 | G99: Valid | H99: 13.91 | I99: 21.38 | J99: Valid | K99: 23.83 | N99: 11.76 | O99: 13.91 | P99: 21.38 | Q99: 23.83 | R99: 21.38 | S99: 23.83 | T99: 11.76 | U99: 13.91
A100: 2020 | B100: 1 | C100: 5 | D100: 2 | E100: 43835.08333 | F100: 13.67 | G100: Valid | H100: 14.07 | I100: 21.46 | J100: Valid | K100: 23.97 | N100: 13.67 | O100: 14.07 | P100: 21.46 | Q100: 23.97 | R100: 21.46 | S100: 23.97 | T100: 13.67 | U100: 14.07
A101: 2020 | B101: 1 | C101: 5 | D101: 3 | E101: 43835.125 | F101: 10.18 | G101: Valid | H101: 13.71 | I101: 17.32 | J101: Valid | K101: 23.63 | N101: 10.18 | O101: 13.71 | P101: 17.32 | Q101: 23.63 | R101: 17.32 | S101: 23.63 | T101: 10.18 | U101: 13.71
A102: 2020 | B102: 1 | C102: 5 | D102: 4 | E102: 43835.16667 | F102: 13.13 | G102: Valid | H102: 13.59 | I102: 19.83 | J102: Valid | K102: 23.44 | N102: 13.13 | O102: 13.59 | P102: 19.83 | Q102: 23.44 | R102: 19.83 | S102: 23.44 | T102: 13.13 | U102: 13.59
A103: 2020 | B103: 1 | C103: 5 | D103: 5 | E103: 43835.20833 | F103: 13.07 | G103: Valid | H103: 13.4 | I103: 20.23 | J103: Valid | K103: 23.19 | N103: 13.07 | O103: 13.4 | P103: 20.23 | Q103: 23.19 | R103: 20.23 | S103: 23.19 | T103: 13.07 | U103: 13.4
A104: 2020 | B104: 1 | C104: 5 | D104: 6 | E104: 43835.25 | F104: 13.52 | G104: Valid | H104: 13.46 | I104: 20.58 | J104: Valid | K104: 23.22 | N104: 13.52 | O104: 13.46 | P104: 20.58 | Q104: 23.22 | R104: 20.58 | S104: 23.22 | T104: 13.52 | U104: 13.46
A105: 2020 | B105: 1 | C105: 5 | D105: 7 | E105: 43835.29167 | F105: 11.53 | G105: Valid | H105: 13.51 | I105: 17.88 | J105: Valid | K105: 23.14 | N105: 11.53 | O105: 13.51 | P105: 17.88 | Q105: 23.14 | R105: 17.88 | S105: 23.14 | T105: 11.53 | U105: 13.51
A106: 2020 | B106: 1 | C106: 5 | D106: 8 | E106: 43835.33333 | F106: 13.09 | G106: Valid | H106: 13.63 | I106: 21.86 | J106: Valid | K106: 23.14 | N106: 13.09 | O106: 13.63 | P106: 21.86 | Q106: 23.14 | R106: 21.86 | S106: 23.14 | T106: 13.09 | U106: 13.63
A107: 2020 | B107: 1 | C107: 5 | D107: 9 | E107: 43835.375 | F107: 15.54 | G107: Valid | H107: 13.79 | I107: 23.71 | J107: Valid | K107: 23.33 | N107: 15.54 | O107: 13.79 | P107: 23.71 | Q107: 23.33 | R107: 23.71 | S107: 23.33 | T107: 15.54 | U107: 13.79
A108: 2020 | B108: 1 | C108: 5 | D108: 10 | E108: 43835.41667 | F108: 16.2 | G108: Valid | H108: 13.99 | I108: 23.96 | J108: Valid | K108: 23.25 | N108: 16.2 | O108: 13.99 | P108: 23.96 | Q108: 23.25 | R108: 23.96 | S108: 23.25 | T108: 16.2 | U108: 13.99
A109: 2020 | B109: 1 | C109: 5 | D109: 11 | E109: 43835.45833 | F109: 13.66 | G109: Valid | H109: 14.08 | I109: 20.75 | J109: Valid | K109: 23.13 | N109: 13.66 | O109: 14.08 | P109: 20.75 | Q109: 23.13 | R109: 20.75 | S109: 23.13 | T109: 13.66 | U109: 14.08
A110: 2020 | B110: 1 | C110: 5 | D110: 12 | E110: 43835.5 | F110: 13.22 | G110: Valid | H110: 14.18 | I110: 21.7 | J110: Valid | K110: 23.22 | N110: 13.22 | O110: 14.18 | P110: 21.7 | Q110: 23.22 | R110: 21.7 | S110: 23.22 | T110: 13.22 | U110: 14.18
A111: 2020 | B111: 1 | C111: 5 | D111: 13 | E111: 43835.54167 | F111: 16.72 | G111: Valid | H111: 14.24 | I111: 23.98 | J111: Valid | K111: 23.07 | N111: 16.72 | O111: 14.24 | P111: 23.98 | Q111: 23.07 | R111: 23.98 | S111: 23.07 | T111: 16.72 | U111: 14.24
A112: 2020 | B112: 1 | C112: 5 | D112: 14 | E112: 43835.58333 | F112: 12.36 | G112: Valid | H112: 13.63 | I112: 20.18 | J112: Valid | K112: 22.3 | N112: 12.36 | O112: 13.63 | P112: 20.18 | Q112: 22.3 | R112: 20.18 | S112: 22.3 | T112: 12.36 | U112: 13.63
A113: 2020 | B113: 1 | C113: 5 | D113: 15 | E113: 43835.625 | F113: 16.62 | G113: Valid | H113: 13.73 | I113: 23.69 | J113: Valid | K113: 22.26 | N113: 16.62 | O113: 13.73 | P113: 23.69 | Q113: 22.26 | R113: 23.69 | S113: 22.26 | T113: 16.62 | U113: 13.73
A114: 2020 | B114: 1 | C114: 5 | D114: 16 | E114: 43835.66667 | F114: 20.2 | G114: Valid | H114: 14.08 | I114: 29.21 | J114: Valid | K114: 22.59 | N114: 20.2 | O114: 14.08 | P114: 29.21 | Q114: 22.59 | R114: 29.21 | S114: 22.59 | T114: 20.2 | U114: 14.08
A115: 2020 | B115: 1 | C115: 5 | D115: 17 | E115: 43835.70833 | F115: 23.33 | G115: Valid | H115: 14.41 | I115: 31.81 | J115: Valid | K115: 22.88 | N115: 23.33 | O115: 14.41 | P115: 31.81 | Q115: 22.88 | R115: 31.81 | S115: 22.88 | T115: 23.33 | U115: 14.41
A116: 2020 | B116: 1 | C116: 5 | D116: 18 | E116: 43835.75 | F116: 17.98 | G116: Valid | H116: 14.46 | I116: 26.15 | J116: Valid | K116: 22.92 | N116: 17.98 | O116: 14.46 | P116: 26.15 | Q116: 22.92 | R116: 26.15 | S116: 22.92 | T116: 17.98 | U116: 14.46
A117: 2020 | B117: 1 | C117: 5 | D117: 19 | E117: 43835.79167 | F117: 23.9 | G117: Valid | H117: 15.02 | I117: 31.42 | J117: Valid | K117: 23.46 | N117: 23.9 | O117: 15.02 | P117: 31.42 | Q117: 23.46 | R117: 31.42 | S117: 23.46 | T117: 23.9 | U117: 15.02
A118: 2020 | B118: 1 | C118: 5 | D118: 20 | E118: 43835.83333 | F118: 18.41 | G118: Valid | H118: 15.07 | I118: 27.66 | J118: Valid | K118: 23.52 | N118: 18.41 | O118: 15.07 | P118: 27.66 | Q118: 23.52 | R118: 27.66 | S118: 23.52 | T118: 18.41 | U118: 15.07
A119: 2020 | B119: 1 | C119: 5 | D119: 21 | E119: 43835.875 | F119: 36.13 | G119: Valid | H119: 15.91 | I119: 109.2 | J119: Valid | K119: 26.88 | N119: 36.13 | O119: 15.91 | P119: 109.2 | Q119: 26.88 | R119: 109.2 | S119: 26.88 | T119: 36.13 | U119: 15.91
A120: 2020 | B120: 1 | C120: 5 | D120: 22 | E120: 43835.91667 | F120: 65.07 | G120: Valid | H120: 18.06 | I120: 132.15 | J120: Valid | K120: 31.19 | N120: 65.07 | O120: 18.06 | P120: 132.15 | Q120: 31.19 | R120: 132.15 | S120: 31.19 | T120: 65.07 | U120: 18.06
A121: 2020 | B121: 1 | C121: 5 | D121: 23 | E121: 43835.95833 | F121: 48.92 | G121: Valid | H121: 19.62 | I121: 59.1 | J121: Valid | K121: 32.76 | N121: 48.92 | O121: 19.62 | P121: 59.1 | Q121: 32.76 | R121: 59.1 | S121: 32.76 | T121: 48.92 | U121: 19.62
A122: 2020 | B122: 1 | C122: 6 | D122: 0 | E122: 43836 | F122: 74.22 | G122: Valid | H122: 22.18 | I122: 224.55 | J122: Valid | K122: 41.24 | N122: 74.22 | O122: 22.18 | P122: 224.55 | Q122: 41.24 | R122: 224.55 | S122: 41.24 | T122: 74.22 | U122: 22.18
A123: 2020 | B123: 1 | C123: 6 | D123: 1 | E123: 43836.04167 | F123: 84.63 | G123: Valid | H123: 25.22 | I123: 209.68 | J123: Valid | K123: 49.09 | N123: 84.63 | O123: 25.22 | P123: 209.68 | Q123: 49.09 | R123: 209.68 | S123: 49.09 | T123: 84.63 | U123: 25.22
A124: 2020 | B124: 1 | C124: 6 | D124: 2 | E124: 43836.08333 | F124: 92.47 | G124: Valid | H124: 28.5 | I124: 157.27 | J124: Valid | K124: 54.74 | N124: 92.47 | O124: 28.5 | P124: 157.27 | Q124: 54.74 | R124: 157.27 | S124: 54.74 | T124: 92.47 | U124: 28.5
A125: 2020 | B125: 1 | C125: 6 | D125: 3 | E125: 43836.125 | F125: 103.98 | G125: Valid | H125: 32.41 | I125: 116.5 | J125: Valid | K125: 58.88 | N125: 103.98 | O125: 32.41 | P125: 116.5 | Q125: 58.88 | R125: 116.5 | S125: 58.88 | T125: 103.98 | U125: 32.41
A126: 2020 | B126: 1 | C126: 6 | D126: 4 | E126: 43836.16667 | F126: 102.05 | G126: Valid | H126: 36.12 | I126: 110.69 | J126: Valid | K126: 62.66 | N126: 102.05 | O126: 36.12 | P126: 110.69 | Q126: 62.66 | R126: 110.69 | S126: 62.66 | T126: 102.05 | U126: 36.12
A127: 2020 | B127: 1 | C127: 6 | D127: 5 | E127: 43836.20833 | F127: 76.41 | G127: Valid | H127: 38.76 | I127: 82.47 | J127: Valid | K127: 65.26 | N127: 76.41 | O127: 38.76 | P127: 82.47 | Q127: 65.26 | R127: 82.47 | S127: 65.26 | T127: 76.41 | U127: 38.76
A128: 2020 | B128: 1 | C128: 6 | D128: 6 | E128: 43836.25 | F128: 58.08 | G128: Valid | H128: 40.61 | I128: 63.28 | J128: Valid | K128: 67.04 | N128: 58.08 | O128: 40.61 | P128: 63.28 | Q128: 67.04 | R128: 63.28 | S128: 67.04 | T128: 58.08 | U128: 40.61
A129: 2020 | B129: 1 | C129: 6 | D129: 7 | E129: 43836.29167 | F129: 45.5 | G129: Valid | H129: 42.03 | I129: 50 | J129: Valid | K129: 68.37 | N129: 45.5 | O129: 42.03 | P129: 50 | Q129: 68.37 | R129: 50 | S129: 68.37 | T129: 45.5 | U129: 42.03
A130: 2020 | B130: 1 | C130: 6 | D130: 8 | E130: 43836.33333 | F130: 42.66 | G130: Valid | H130: 43.26 | I130: 47.12 | J130: Valid | K130: 69.43 | N130: =IF(G130="Valid", F130, NA()) -> 42.66 | O130: =IF(G130="Valid", H130, NA()) -> 43.26 | P130: =IF(J130="Valid", I130, NA()) -> 47.12 | Q130: =IF(J130="Valid", K130, NA()) -> 69.43 | R130: 47.12 | S130: 69.43 | T130: 42.66 | U130: 43.26
A131: 2020 | B131: 1 | C131: 6 | D131: 9 | E131: 43836.375 | F131: 39.91 | G131: Valid | H131: 44.28 | I131: 44.76 | J131: Valid | K131: 70.3 | N131: 39.91 | O131: 44.28 | P131: 44.76 | Q131: 70.3 | R131: 44.76 | S131: 70.3 | T131: 39.91 | U131: 44.28
A132: =A131 -> 2020 | B132: 1 | C132: 6 | D132: =IF(D131=23,0,D131+1) -> 10 | E132: =E131+0.0416666666666666 -> 43836.41667 | F132: 51.82 | G132: Valid | H132: 45.76 | I132: 58.37 | J132: Valid | K132: 71.74 | N132: 51.82 | O132: 45.76 | P132: 58.37 | Q132: 71.74 | R132: 58.37 | S132: 71.74 | T132: 51.82 | U132: 45.76
A133: 2020 | B133: 1 | C133: 6 | D133: 11 | E133: 43836.45833 | F133: 50.76 | G133: Valid | H133: 47.31 | I133: 57.87 | J133: Valid | K133: 73.28 | N133: 50.76 | O133: 47.31 | P133: 57.87 | Q133: 73.28 | R133: 57.87 | S133: 73.28 | T133: 50.76 | U133: 47.31
A134: 2020 | B134: 1 | C134: 6 | D134: 12 | E134: 43836.5 | F134: 54.23 | G134: Valid | H134: 49.02 | I134: 61.12 | J134: Valid | K134: 74.93 | N134: 54.23 | O134: 49.02 | P134: 61.12 | Q134: 74.93 | R134: 61.12 | S134: 74.93 | T134: 54.23 | U134: 49.02
A135: 2020 | B135: 1 | C135: 6 | D135: 13 | E135: 43836.54167 | F135: 45.65 | G135: Valid | H135: 50.22 | I135: 56.59 | J135: Valid | K135: 76.29 | N135: 45.65 | O135: 50.22 | P135: 56.59 | Q135: 76.29 | R135: 56.59 | S135: 76.29 | T135: 45.65 | U135: 50.22
A136: 2020 | B136: 1 | C136: 6 | D136: 14 | E136: 43836.58333 | F136: 49.83 | G136: Valid | H136: 51.78 | I136: 56.89 | J136: Valid | K136: 77.81 | N136: 49.83 | O136: 51.78 | P136: 56.89 | Q136: 77.81 | R136: 56.89 | S136: 77.81 | T136: 49.83 | U136: 51.78
A137: 2020 | B137: 1 | C137: 6 | D137: 15 | E137: 43836.625 | F137: 48.29 | G137: Valid | H137: 53.1 | I137: 56.13 | J137: Valid | K137: 79.17 | N137: 48.29 | O137: 53.1 | P137: 56.13 | Q137: 79.17 | R137: 56.13 | S137: 79.17 | T137: 48.29 | U137: 53.1
A138: 2020 | B138: 1 | C138: 6 | D138: 16 | E138: 43836.66667 | F138: 52.93 | G138: Valid | H138: 54.47 | I138: 62.39 | J138: Valid | K138: 80.55 | N138: 52.93 | O138: 54.47 | P138: 62.39 | Q138: 80.55 | R138: 62.39 | S138: 80.55 | T138: 52.93 | U138: 54.47
A139: 2020 | B139: 1 | C139: 6 | D139: 17 | E139: 43836.70833 | F139: 52.45 | G139: Valid | H139: 55.68 | I139: 62.63 | J139: Valid | K139: 81.83 | N139: 52.45 | O139: 55.68 | P139: 62.63 | Q139: 81.83 | R139: 62.63 | S139: 81.83 | T139: 52.45 | U139: 55.68
A140: 2020 | B140: 1 | C140: 6 | D140: 18 | E140: 43836.75 | F140: 50.04 | G140: Valid | H140: 57.01 | I140: 58.02 | J140: Valid | K140: 83.16 | N140: 50.04 | O140: 57.01 | P140: 58.02 | Q140: 83.16 | R140: 58.02 | S140: 83.16 | T140: 50.04 | U140: 57.01
A141: 2020 | B141: 1 | C141: 6 | D141: 19 | E141: 43836.79167 | F141: 45.07 | G141: Valid | H141: 57.9 | I141: 62.58 | J141: Valid | K141: 84.46 | N141: 45.07 | O141: 57.9 | P141: 62.58 | Q141: 84.46 | R141: 62.58 | S141: 84.46 | T141: 45.07 | U141: 57.9
A142: 2020 | B142: 1 | C142: 6 | D142: 20 | E142: 43836.83333 | F142: 35.87 | G142: Valid | H142: 58.62 | I142: 44.8 | J142: Valid | K142: 85.17 | N142: 35.87 | O142: 58.62 | P142: 44.8 | Q142: 85.17 | R142: 44.8 | S142: 85.17 | T142: 35.87 | U142: 58.62
A143: 2020 | B143: 1 | C143: 6 | D143: 21 | E143: 43836.875 | F143: 34.14 | G143: Valid | H143: 58.54 | I143: 42.49 | J143: Valid | K143: 82.39 | N143: 34.14 | O143: 58.54 | P143: 42.49 | Q143: 82.39 | R143: 42.49 | S143: 82.39 | T143: 34.14 | U143: 58.54
A144: 2020 | B144: 1 | C144: 6 | D144: 22 | E144: 43836.91667 | F144: 32.15 | G144: Valid | H144: 57.17 | I144: 41.73 | J144: Valid | K144: 78.63 | N144: 32.15 | O144: 57.17 | P144: 41.73 | Q144: 78.63 | R144: 41.73 | S144: 78.63 | T144: 32.15 | U144: 57.17
A145: 2020 | B145: 1 | C145: 6 | D145: 23 | E145: 43836.95833 | F145: 32.54 | G145: Valid | H145: 56.49 | I145: 51.51 | J145: Valid | K145: 78.31 | N145: 32.54 | O145: 56.49 | P145: 51.51 | Q145: 78.31 | R145: 51.51 | S145: 78.31 | T145: 32.54 | U145: 56.49
A146: 2020 | B146: 1 | C146: 7 | D146: 0 | E146: 43837 | F146: 30.82 | G146: Valid | H146: 54.68 | I146: 60.58 | J146: Valid | K146: 71.48 | N146: 30.82 | O146: 54.68 | P146: 60.58 | Q146: 71.48 | R146: 60.58 | S146: 71.48 | T146: 30.82 | U146: 54.68
A147: 2020 | B147: 1 | C147: 7 | D147: 1 | E147: 43837.04167 | F147: 40.65 | G147: Valid | H147: 52.85 | I147: 56.19 | J147: Valid | K147: 65.08 | N147: 40.65 | O147: 52.85 | P147: 56.19 | Q147: 65.08 | R147: 56.19 | S147: 65.08 | T147: 40.65 | U147: 52.85
A148: 2020 | B148: 1 | C148: 7 | D148: 2 | E148: 43837.08333 | F148: 37.21 | G148: Valid | H148: 50.54 | I148: 54.37 | J148: Valid | K148: 60.8 | N148: 37.21 | O148: 50.54 | P148: 54.37 | Q148: 60.8 | R148: 54.37 | S148: 60.8 | T148: 37.21 | U148: 50.54
A149: 2020 | B149: 1 | C149: 7 | D149: 3 | E149: 43837.125 | F149: 31.4 | G149: Valid | H149: 47.52 | I149: 52.42 | J149: Valid | K149: 58.13 | N149: 31.4 | O149: 47.52 | P149: 52.42 | Q149: 58.13 | R149: 52.42 | S149: 58.13 | T149: 31.4 | U149: 47.52
A150: 2020 | B150: 1 | C150: 7 | D150: 4 | E150: 43837.16667 | F150: 23.6 | G150: Valid | H150: 44.25 | I150: 43.46 | J150: Valid | K150: 55.32 | N150: 23.6 | O150: 44.25 | P150: 43.46 | Q150: 55.32 | R150: 43.46 | S150: 55.32 | T150: 23.6 | U150: 44.25
A151: 2020 | B151: 1 | C151: 7 | D151: 5 | E151: 43837.20833 | F151: 24.05 | G151: Valid | H151: 42.07 | I151: 45.73 | J151: Valid | K151: 53.79 | N151: 24.05 | O151: 42.07 | P151: 45.73 | Q151: 53.79 | R151: 45.73 | S151: 53.79 | T151: 24.05 | U151: 42.07
A152: 2020 | B152: 1 | C152: 7 | D152: 6 | E152: 43837.25 | F152: 17.34 | G152: Valid | H152: 40.37 | I152: 23.41 | J152: Valid | K152: 52.13 | N152: 17.34 | O152: 40.37 | P152: 23.41 | Q152: 52.13 | R152: 23.41 | S152: 52.13 | T152: 17.34 | U152: 40.37
A153: 2020 | B153: 1 | C153: 7 | D153: 7 | E153: 43837.29167 | F153: 21.98 | G153: Valid | H153: 39.39 | I153: 29.52 | J153: Valid | K153: 51.28 | N153: 21.98 | O153: 39.39 | P153: 29.52 | Q153: 51.28 | R153: 29.52 | S153: 51.28 | T153: 21.98 | U153: 39.39
A154: 2020 | B154: 1 | C154: 7 | D154: 8 | E154: 43837.33333 | F154: 20.39 | G154: Valid | H154: 38.46 | I154: 27.01 | J154: Valid | K154: 50.44 | N154: 20.39 | O154: 38.46 | P154: 27.01 | Q154: 50.44 | R154: 27.01 | S154: 50.44 | T154: 20.39 | U154: 38.46
A155: 2020 | B155: =B154 -> 1 | C155: =C131+1 -> 7 | D155: 9 | E155: 43837.375 | F155: 20.32 | G155: Valid | H155: 37.65 | I155: 31.86 | J155: Valid | K155: 49.9 | N155: 20.32 | O155: 37.65 | P155: 31.86 | Q155: 49.9 | R155: 31.86 | S155: 49.9 | T155: 20.32 | U155: 37.65
A156: 2020 | B156: 1 | C156: 7 | D156: 10 | E156: 43837.41667 | F156: 26.1 | G156: Valid | H156: 36.58 | I156: 34.84 | J156: Valid | K156: 48.92 | N156: 26.1 | O156: 36.58 | P156: 34.84 | Q156: 48.92 | R156: 34.84 | S156: 48.92 | T156: 26.1 | U156: 36.58
A157: 2020 | B157: 1 | C157: 7 | D157: 11 | E157: 43837.45833 | F157: 22.27 | G157: Valid | H157: 35.39 | I157: 28.47 | J157: Valid | K157: 47.7 | N157: 22.27 | O157: 35.39 | P157: 28.47 | Q157: 47.7 | R157: 28.47 | S157: 47.7 | T157: 22.27 | U157: 35.39
A158: 2020 | B158: 1 | C158: 7 | D158: 12 | E158: 43837.5 | F158: 21.44 | G158: Valid | H158: 34.02 | I158: 31.51 | J158: Valid | K158: 46.46 | N158: 21.44 | O158: 34.02 | P158: 31.51 | Q158: 46.46 | R158: 31.51 | S158: 46.46 | T158: 21.44 | U158: 34.02
A159: 2020 | B159: 1 | C159: 7 | D159: 13 | E159: 43837.54167 | F159: 20.15 | G159: Valid | H159: 32.96 | I159: 29.91 | J159: Valid | K159: 45.35 | N159: 20.15 | O159: 32.96 | P159: 29.91 | Q159: 45.35 | R159: 29.91 | S159: 45.35 | T159: 20.15 | U159: 32.96
A160: 2020 | B160: 1 | C160: 7 | D160: 14 | E160: 43837.58333 | F160: 16.59 | G160: Valid | H160: 31.57 | I160: 130.98 | J160: Valid | K160: 48.44 | N160: 16.59 | O160: 31.57 | P160: 130.98 | Q160: 48.44 | R160: 130.98 | S160: 48.44 | T160: 16.59 | U160: 31.57
A161: 2020 | B161: 1 | C161: 7 | D161: 15 | E161: 43837.625 | F161: =NA() ->  | G161: Invalid | H161: =NA() ->  | I161: =NA() ->  | J161: Invalid | K161: =NA() ->  | L161: Calibration Error | M161: Annuall calibration and filter change including 12-hour zero test.
A162: 2020 | B162: 1 | C162: 7 | D162: 16 | E162: 43837.66667 | F162: =NA() ->  | G162: Invalid | H162: =NA() ->  | I162: =NA() ->  | J162: Invalid | K162: =NA() ->  | L162: Calibration Error | M162: Annuall calibration and filter change including 12-hour zero test.
A163: 2020 | B163: 1 | C163: 7 | D163: 17 | E163: 43837.70833 | F163: =NA() ->  | G163: Invalid | H163: =NA() ->  | I163: =NA() ->  | J163: Invalid | K163: =NA() ->  | L163: Calibration Error | M163: Annuall calibration and filter change including 12-hour zero test.
A164: 2020 | B164: 1 | C164: 7 | D164: 18 | E164: 43837.75 | F164: =NA() ->  | G164: Invalid | H164: =NA() ->  | I164: =NA() ->  | J164: Invalid | K164: =NA() ->  | L164: Calibration Error | M164: Annuall calibration and filter change including 12-hour zero test.
A165: 2020 | B165: 1 | C165: 7 | D165: 19 | E165: 43837.79167 | F165: =NA() ->  | G165: Invalid | H165: =NA() ->  | I165: =NA() ->  | J165: Invalid | K165: =NA() ->  | L165: Calibration Error | M165: Annuall calibration and filter change including 12-hour zero test.
A166: 2020 | B166: 1 | C166: 7 | D166: 20 | E166: 43837.83333 | F166: =NA() ->  | G166: Invalid | H166: =NA() ->  | I166: =NA() ->  | J166: Invalid | K166: =NA() ->  | L166: Calibration Error | M166: Annuall calibration and filter change including 12-hour zero test.
A167: 2020 | B167: 1 | C167: 7 | D167: 21 | E167: 43837.875 | F167: =NA() ->  | G167: Invalid | H167: =NA() ->  | I167: =NA() ->  | J167: Invalid | K167: =NA() ->  | L167: Calibration Error | M167: Annual calibration and filter change including 12-hour zero test. 24Hr average lost due to data interruption.
A168: 2020 | B168: 1 | C168: 7 | D168: 22 | E168: 43837.91667 | F168: =NA() ->  | G168: Invalid | H168: =NA() ->  | I168: =NA() ->  | J168: Invalid | K168: =NA() ->  | L168: Calibration Error | M168: Annual calibration and filter change including 12-hour zero test. 24Hr average lost due to data interruption.
A169: 2020 | B169: 1 | C169: 7 | D169: 23 | E169: 43837.95833 | F169: =NA() ->  | G169: Invalid | H169: =NA() ->  | I169: =NA() ->  | J169: Invalid | K169: =NA() ->  | L169: Calibration Error | M169: Annual calibration and filter change including 12-hour zero test. 24Hr average lost due to data interruption.
A170: 2020 | B170: 1 | C170: 8 | D170: 0 | E170: 43838 | F170: =NA() ->  | G170: Invalid | H170: =NA() ->  | I170: =NA() ->  | J170: Invalid | K170: =NA() ->  | L170: Calibration Error | M170: Annual calibration and filter change including 12-hour zero test. 24Hr average lost due to data interruption.
A171: 2020 | B171: 1 | C171: 8 | D171: 1 | E171: 43838.04167 | F171: =NA() ->  | G171: Invalid | H171: =NA() ->  | I171: =NA() ->  | J171: Invalid | K171: =NA() ->  | L171: Calibration Error | M171: Annual calibration and filter change including 12-hour zero test. 24Hr average lost due to data interruption.
A172: 2020 | B172: 1 | C172: 8 | D172: 2 | E172: 43838.08333 | F172: =NA() ->  | G172: Invalid | H172: =NA() ->  | I172: =NA() ->  | J172: Invalid | K172: =NA() ->  | L172: Calibration Error | M172: Annual calibration and filter change including 12-hour zero test. 24Hr average lost due to data interruption.
A173: 2020 | B173: 1 | C173: 8 | D173: 3 | E173: 43838.125 | F173: =NA() ->  | G173: Invalid | H173: =NA() ->  | I173: =NA() ->  | J173: Invalid | K173: =NA() ->  | L173: Calibration Error | M173: Annual calibration and filter change including 12-hour zero test. 24Hr average lost due to data interruption.
A174: 2020 | B174: 1 | C174: 8 | D174: 4 | E174: 43838.16667 | F174: =NA() ->  | G174: Invalid | H174: =NA() ->  | I174: =NA() ->  | J174: Invalid | K174: =NA() ->  | L174: Calibration Error | M174: Annual calibration and filter change including 12-hour zero test. 24Hr average lost due to data interruption.
A175: 2020 | B175: 1 | C175: 8 | D175: 5 | E175: 43838.20833 | F175: =NA() ->  | G175: Invalid | H175: =NA() ->  | I175: =NA() ->  | J175: Invalid | K175: =NA() ->  | L175: Calibration Error | M175: Annual calibration and filter change including 12-hour zero test. 24Hr average lost due to data interruption.
A176: 2020 | B176: 1 | C176: 8 | D176: 6 | E176: 43838.25 | F176: =NA() ->  | G176: Invalid | H176: =NA() ->  | I176: =NA() ->  | J176: Invalid | K176: =NA() ->  | L176: Calibration Error | M176: Annual calibration and filter change including 12-hour zero test. 24Hr average lost due to data interruption.
A177: 2020 | B177: 1 | C177: 8 | D177: 7 | E177: 43838.29167 | F177: =NA() ->  | G177: Invalid | H177: =NA() ->  | I177: =NA() ->  | J177: Invalid | K177: =NA() ->  | L177: Calibration Error | M177: Annual calibration and filter change including 12-hour zero test. 24Hr average lost due to data interruption.
A178: 2020 | B178: 1 | C178: 8 | D178: 8 | E178: 43838.33333 | F178: =NA() ->  | G178: Invalid | H178: =NA() ->  | I178: =NA() ->  | J178: Invalid | K178: =NA() ->  | L178: Calibration Error | M178: Annual calibration and filter change including 12-hour zero test. 24Hr average lost due to data interruption.
A179: 2020 | B179: 1 | C179: 8 | D179: 9 | E179: 43838.375 | F179: =NA() ->  | G179: Invalid | H179: =NA() ->  | I179: =NA() ->  | J179: Invalid | K179: =NA() ->  | L179: Calibration Error | M179: Annual calibration and filter change including 12-hour zero test. 24Hr average lost due to data interruption.
A180: 2020 | B180: 1 | C180: 8 | D180: 10 | E180: 43838.41667 | F180: =NA() ->  | G180: Invalid | H180: =NA() ->  | I180: =NA() ->  | J180: Invalid | K180: =NA() ->  | L180: Calibration Error | M180: Annual calibration and filter change including 12-hour zero test. 24Hr average lost due to data interruption.
A181: 2020 | B181: 1 | C181: 8 | D181: 11 | E181: 43838.45833 | F181: =NA() ->  | G181: Invalid | H181: =NA() ->  | I181: =NA() ->  | J181: Invalid | K181: =NA() ->  | L181: Calibration Error | M181: Annual calibration and filter change including 12-hour zero test. 24Hr average lost due to data interruption.
A182: 2020 | B182: 1 | C182: 8 | D182: 12 | E182: 43838.5 | F182: 21.48 | G182: Valid | H182: =NA() ->  | I182: 28.96 | J182: Valid | K182: =NA() ->  | M182: 24Hr average lost due to data interruption | N182: 21.48 | P182: 28.96 | R182: 28.96 | T182: 21.48
A183: 2020 | B183: 1 | C183: 8 | D183: 13 | E183: 43838.54167 | F183: 17.91 | G183: Valid | H183: =NA() ->  | I183: 27.46 | J183: Valid | K183: =NA() ->  | M183: 24Hr average lost due to data interruption | N183: 17.91 | P183: 27.46 | R183: 27.46 | T183: 17.91
A184: 2020 | B184: 1 | C184: 8 | D184: 14 | E184: 43838.58333 | F184: 16.02 | G184: Valid | H184: =NA() ->  | I184: 25.5 | J184: Valid | K184: =NA() ->  | M184: 24Hr average lost due to data interruption | N184: 16.02 | P184: 25.5 | R184: 25.5 | T184: 16.02
A185: 2020 | B185: 1 | C185: 8 | D185: 15 | E185: 43838.625 | F185: 17.36 | G185: Valid | H185: =NA() ->  | I185: 36.41 | J185: Valid | K185: =NA() ->  | M185: 24Hr average lost due to data interruption | N185: 17.36 | P185: 36.41 | R185: 36.41 | T185: 17.36
A186: 2020 | B186: 1 | C186: 8 | D186: 16 | E186: 43838.66667 | F186: 17.71 | G186: Valid | H186: =NA() ->  | I186: 50.77 | J186: Valid | K186: =NA() ->  | M186: 24Hr average lost due to data interruption | N186: 17.71 | P186: 50.77 | R186: 50.77 | T186: 17.71
A187: 2020 | B187: 1 | C187: 8 | D187: 17 | E187: 43838.70833 | F187: 17.07 | G187: Valid | H187: =NA() ->  | I187: 51.77 | J187: Valid | K187: =NA() ->  | M187: 24Hr average lost due to data interruption | N187: 17.07 | P187: 51.77 | R187: 51.77 | T187: 17.07
A188: 2020 | B188: 1 | C188: 8 | D188: 18 | E188: 43838.75 | F188: 15.81 | G188: Valid | H188: =NA() ->  | I188: 43.42 | J188: Valid | K188: =NA() ->  | M188: 24Hr average lost due to data interruption | N188: 15.81 | P188: 43.42 | R188: 43.42 | T188: 15.81
A189: 2020 | B189: 1 | C189: 8 | D189: 19 | E189: 43838.79167 | F189: 16.41 | G189: Valid | H189: =NA() ->  | I189: 44.65 | J189: Valid | K189: =NA() ->  | M189: 24Hr average lost due to data interruption | N189: 16.41 | P189: 44.65 | R189: 44.65 | T189: 16.41
A190: 2020 | B190: 1 | C190: 8 | D190: 20 | E190: 43838.83333 | F190: 17.81 | G190: Valid | H190: =NA() ->  | I190: 47.41 | J190: Valid | K190: =NA() ->  | M190: 24Hr average lost due to data interruption | N190: 17.81 | P190: 47.41 | R190: 47.41 | T190: 17.81
A191: 2020 | B191: 1 | C191: 8 | D191: 21 | E191: 43838.875 | F191: 15.26 | G191: Valid | H191: =NA() ->  | I191: 39.65 | J191: Valid | K191: =NA() ->  | M191: 24Hr average lost due to data interruption | N191: 15.26 | P191: 39.65 | R191: 39.65 | T191: 15.26
A192: 2020 | B192: 1 | C192: 8 | D192: 22 | E192: 43838.91667 | F192: 19.29 | G192: Valid | H192: =NA() ->  | I192: 47.84 | J192: Valid | K192: =NA() ->  | M192: 24Hr average lost due to data interruption | N192: 19.29 | P192: 47.84 | R192: 47.84 | T192: 19.29
A193: 2020 | B193: 1 | C193: 8 | D193: 23 | E193: 43838.95833 | F193: 32.35 | G193: Valid | H193: =NA() ->  | I193: 132.15 | J193: Valid | K193: =NA() ->  | M193: 24Hr average lost due to data interruption | N193: 32.35 | P193: 132.15 | R193: 132.15 | T193: 32.35
A194: 2020 | B194: 1 | C194: 9 | D194: 0 | E194: 43839 | F194: 32.53 | G194: Valid | H194: =NA() ->  | I194: 61.08 | J194: Valid | K194: =NA() ->  | M194: 24Hr average lost due to data interruption | N194: =IF(G194="Valid", F194, NA()) -> 32.53 | O194: =IF(G194="Valid", H194, NA()) ->  | P194: =IF(J194="Valid", I194, NA()) -> 61.08 | Q194: =IF(J194="Valid", K194, NA()) ->  | R194: 61.08 | T194: 32.53
A195: 2020 | B195: 1 | C195: 9 | D195: 1 | E195: 43839.04167 | F195: 22.02 | G195: Valid | H195: =NA() ->  | I195: 26.63 | J195: Valid | K195: =NA() ->  | M195: 24Hr average lost due to data interruption | N195: 22.02 | P195: 26.63 | R195: 26.63 | T195: 22.02
A196: =A195 -> 2020 | B196: 1 | C196: 9 | D196: =IF(D195=23,0,D195+1) -> 2 | E196: =E195+0.0416666666666666 -> 43839.08333 | F196: 21.99 | G196: Valid | H196: =NA() ->  | I196: 28.15 | J196: Valid | K196: =NA() ->  | M196: 24Hr average lost due to data interruption | N196: 21.99 | P196: 28.15 | R196: 28.15 | T196: 21.99
A197: 2020 | B197: 1 | C197: 9 | D197: 3 | E197: 43839.125 | F197: 34.38 | G197: Valid | H197: =NA() ->  | I197: 42.7 | J197: Valid | K197: =NA() ->  | M197: 24Hr average lost due to data interruption | N197: 34.38 | P197: 42.7 | R197: 42.7 | T197: 34.38
A198: 2020 | B198: 1 | C198: 9 | D198: 4 | E198: 43839.16667 | F198: 35.17 | G198: Valid | H198: =NA() ->  | I198: 57.7 | J198: Valid | K198: =NA() ->  | M198: 24Hr average lost due to data interruption | N198: 35.17 | P198: 57.7 | R198: 57.7 | T198: 35.17
A199: 2020 | B199: 1 | C199: 9 | D199: 5 | E199: 43839.20833 | F199: 37.82 | G199: Valid | H199: 22.69 | I199: 50.52 | J199: Valid | K199: 46.82 | N199: 37.82 | O199: 22.69 | P199: 50.52 | Q199: 46.82 | R199: 50.52 | S199: 46.82 | T199: 37.82 | U199: 22.69
A200: 2020 | B200: 1 | C200: 9 | D200: 6 | E200: 43839.25 | F200: 39.48 | G200: Valid | H200: 23.57 | I200: 59.14 | J200: Valid | K200: 47.47 | N200: 39.48 | O200: 23.57 | P200: 59.14 | Q200: 47.47 | R200: 59.14 | S200: 47.47 | T200: 39.48 | U200: 23.57
... 545 more rows

Sheet Raw data_format
A1: Parameter | B1: Format | C1: Comment | D1: Units of measure | E1: Minimum | F1: Maximum
A2: Year | B2: yyyy | C2: 4 integer format | D2: Not applicable | E2: 2015 | F2: Until reporting ceases
A3: Month | B3: mm | C3: 2 integer format | D3: Not applicable | E3: 1 | F3: 12
A4: Day | B4: dd | C4: 2 integer format | D4: Not applicable | E4: 1 | F4: 31
A5: Hour | B5: hh | C5: 2 integer format | D5: Not applicable | E5: 0 | F5: 23
A6: PM10 | B6: 0 | C6: 1 decimal place resolution | D6: µg/m3 | E6: Negative | F6: Instrument specific
A7: PM2.5 | B7: 0 | C7: 2 decimal place resolution | D7: µg/m3 | E7: Negative | F7: Instrument specific
A8: Status | B8: Text | C8: 7 character format | D8: Not applicable | E8: Valid | F8: Invalid

Sheet Sheet1
